fUSD/lending_fUSD_20251206
["ID","MTS","AMOUNT","RATE_DAILY","PERIOD"]
[396561245,1765051837861,-1370.0,0.00014864,2]
[396561246,1765051837870,-1764.0,0.00014894,2]
[396561247,1765051837879,-1000.0,0.00014895,2]
[396561248,1765051837889,-1204.47,0.00014931,2]
[396561249,1765051837899,-200.93,0.00014946,2]
[396561250,1765051837908,-166.29,0.00014996,2]
[396561251,1765051837917,-1000.0,0.00014998,3]
[396561252,1765051837927,-1600.0,0.0001506,2]
[396561253,1765051837936,-150.0,0.00015078,2]
[396561254,1765051837945,-861.08,0.0001508,2]
[396561255,1765051837954,-2450.0,0.00015192,2]
[396561256,1765051837963,-1000.0,0.00015192,2]
[396561257,1765051837972,-2182.99,0.00015201,2]
[396561258,1765051837982,-488.97,0.00015204,2]
[396561259,1765051837991,-150.99,0.00015204,2]
[396561260,1765051838001,-185.94811774,0.00015249,2]
[396561261,1765051838011,-153.9,0.00015284,2]
[396561262,1765051838021,-299.99,0.00015284,2]
[396561263,1765051838031,-150.0,0.00015288,2]
[396561265,1765051838041,-150.0,0.00015288,2]
[396561267,1765051838050,-150.0,0.00015288,2]
[396561269,1765051838060,-150.0,0.00015288,2]
[396561271,1765051838070,-150.0,0.00015288,2]
[396561273,1765051838079,-150.0,0.00015288,2]
[396561295,1765051838360,-150.0,0.00015288,2]
[396561297,1765051838370,-150.0,0.00015571,2]
[396561298,1765051838380,-150.0,0.00015571,2]
[396561299,1765051838389,-293.0,0.00015579,2]
[396561300,1765051838398,-3980.92302508,0.000157,2]
[396561301,1765051838407,-7640.68157559,0.00015729,2]
[396561302,1765051838417,-158.41495458,0.00015738,2]
[396561303,1765051838426,-544.52908136,0.00015738,2]
[396561304,1765051838435,-2450.0,0.0001574,2]
[396561305,1765051838445,-649.21,0.0001579,3]
[396561306,1765051838455,-151.0,0.00015797,2]
[396561307,1765051838464,-151.0,0.00015797,2]
[396561308,1765051838474,-760000.0,0.000158,2]
[396561309,1765051838484,-3764.259,0.00015838,2]
[396561310,1765051838493,-191.553,0.00015838,2]
[396561311,1765051838504,-6206.9863346,0.00015838,2]
[396561312,1765051838514,-33422.8467,0.00015838,2]
[396561313,1765051838523,-1000.0,0.00015838,2]
[396561314,1765051838533,-4090.5884,0.00015838,2]
[396561315,1765051838543,-3736.5553,0.00015838,2]
[396561316,1765051838552,-150.0,0.00015854,2]
[396561317,1765051838561,-150.0,0.00015854,2]
[396561318,1765051838570,-7640.68157558,0.00015859,2]
[396561319,1765051838583,-511.90735357,0.000159,2]
[396561320,1765051838593,-511.90735357,0.000159,2]
[396561321,1765051838603,-351.62673373,0.00015937,5]
[396561322,1765051838612,-1704.70774689,0.00015937,5]
[396561323,1765051838623,-500.0,0.00015937,2]
[396561324,1765051838633,-500.0,0.00015937,2]
[396561325,1765051838642,-500.0,0.00015937,2]
[396561326,1765051838651,-500.0,0.00015937,2]
[396561327,1765051838661,-500.0,0.00015937,2]
[396561328,1765051838670,-500.0,0.00015937,2]
[396561329,1765051838680,-500.0,0.00015937,2]
[396561330,1765051838690,-500.0,0.00015937,2]
[396561331,1765051838699,-500.0,0.00015937,2]
[396561332,1765051838709,-500.0,0.00015937,2]
[396561333,1765051838718,-402.34038572,0.00015937,2]
[396561334,1765051838727,-242.79480687,0.00015937,2]
[396561335,1765051838737,-500.0,0.00015937,2]
[396561336,1765051838746,-500.0,0.00015937,2]
[396561337,1765051838757,-609.97156983,0.00015937,2]
[396561338,1765051838766,-500.0,0.00015937,2]
[396561339,1765051838776,-500.0,0.00015937,2]
[396561340,1765051838785,-514.05399617,0.00015937,2]
[396561341,1765051838795,-222.56764232,0.00015938,2]
[396561342,1765051838804,-587.0,0.00015938,2]
[396561343,1765051838813,-228.0,0.00015938,2]
[396561344,1765051838823,-3516.0,0.00015956,2]
[396561345,1765051838832,-6206.98633459,0.00015956,2]
[396561346,1765051838841,-7640.68157558,0.00015989,2]
[396561347,1765051838851,-2351.0,0.00016043,2]
[396561348,1765051838863,-1200.0,0.00016058,2]
[396561349,1765051838872,-151.0,0.00016062,2]
[396561350,1765051838882,-200.0,0.00016065,2]
[396561351,1765051838891,-207.4,0.00016065,2]
[396561352,1765051838901,-215.0738,0.00016065,2]
[396561353,1765051838911,-223.0315306,0.00016065,2]
[396561354,1765051838920,-231.28369723,0.00016065,2]
[396561355,1765051838930,-239.84119403,0.00016065,2]
[396561356,1765051838939,-248.71531821,0.00016065,2]
[396561357,1765051838949,-257.91778498,0.00016065,2]
[396561358,1765051838959,-267.46074303,0.00016065,2]
[396561359,1765051838968,-151.0,0.00016065,2]
[396561360,1765051838977,-151.0,0.00016065,2]
[396561361,1765051838987,-334.5472959,0.00016065,2]
[396561362,1765051838997,-151.0,0.00016065,2]
[396561363,1765051839006,-500.0,0.00016065,2]
[396561364,1765051839016,-500.0,0.00016065,2]
[396561365,1765051839026,-500.0,0.00016065,2]
[396561366,1765051839035,-500.0,0.00016065,2]
[396561367,1765051839044,-500.0,0.00016065,2]
[396561368,1765051839054,-500.0,0.00016065,2]
[396561369,1765051839064,-500.0,0.00016065,2]
[396561370,1765051839073,-500.0,0.00016065,2]
[396561371,1765051839083,-500.0,0.00016065,2]
[396561372,1765051839092,-500.0,0.00016065,2]
[396561373,1765051839102,-452.39878914,0.00016065,2]
[396561374,1765051839111,-300.0,0.00016065,2]
[396561375,1765051839121,-216.12575462,0.00016065,2]
[396561376,1765051839131,-6206.98633459,0.00016074,2]
[396561377,1765051839140,-1259.0,0.00016101,2]
[396561378,1765051839149,-614.0,0.00016101,2]
[396561379,1765051839159,-7640.68157558,0.00016119,2]
[396561380,1765051839168,-150.0,0.00016137,2]
[396561381,1765051839177,-150.0,0.00016137,2]
[396561382,1765051839188,-150.0,0.00016137,2]
[396561383,1765051839197,-150.0,0.00016137,2]
[396561384,1765051839207,-150.0,0.00016137,2]
[396561385,1765051839217,-633.0,0.00016174,2]
[396561386,1765051839226,-278.0,0.00016174,2]
[396561387,1765051839236,-6206.98633459,0.00016192,2]
[396561388,1765051839246,-4707.0,0.00016227,2]
[396561389,1765051839255,-562.0,0.00016227,2]
[396561390,1765051839264,-6513.0,0.00016227,2]
[396561391,1765051839276,-3014.3782,0.00016238,2]
[396561392,1765051839285,-150.0,0.00016245,2]
[396561393,1765051839294,-1605.0,0.00016245,2]
[396561394,1765051839304,-1334.924,0.00016245,2]
[396561395,1765051839313,-3446.0,0.00016245,2]
[396561396,1765051839323,-611.0,0.00016245,2]
[396561397,1765051839332,-7640.68157558,0.00016249,2]
[396561398,1765051839341,-6206.98633459,0.0001631,2]
[396561399,1765051839351,-502.86904478,0.00016337,2]
[396561400,1765051839360,-500.0,0.00016337,2]
[396561401,1765051839370,-500.0,0.00016337,2]
[396561402,1765051839379,-500.0,0.00016337,2]
[396561403,1765051839389,-500.0,0.00016337,2]
[396561404,1765051839398,-588.24188777,0.00016337,2]
[396561405,1765051839408,-500.0,0.00016337,2]
[396561406,1765051839417,-223.9422061,0.00016337,2]
[396561407,1765051839426,-500.0,0.00016337,2]
[396561408,1765051839436,-500.0,0.00016337,2]
[396561409,1765051839446,-500.0,0.00016337,2]
[396561410,1765051839456,-500.0,0.00016337,2]
[396561411,1765051839467,-500.0,0.00016337,2]
[396561412,1765051839476,-500.0,0.00016356,2]
[396561413,1765051839486,-7640.68157558,0.0001638,2]
[396561414,1765051839495,-150.0,0.0001642,2]
[396561415,1765051839505,-150.0,0.0001642,2]
[396561416,1765051839514,-6206.98633459,0.00016428,2]
[396561417,1765051839523,-332.7628723,0.00016428,2]
[396561418,1765051839532,-151.0,0.00016435,2]
[396561419,1765051839541,-151.0,0.00016435,2]
[396561420,1765051839551,-239.10838329,0.00016437,2]
[396561421,1765051839560,-500.0,0.00016438,2]
[396561422,1765051839569,-389.64233218,0.00016438,2]
[396561423,1765051839578,-502.41543289,0.00016438,2]
[396561424,1765051839587,-501.03550429,0.00016438,2]
[396561425,1765051839596,-501.43523502,0.00016438,2]
[396561426,1765051839605,-501.83538398,0.00016438,2]
[396561427,1765051839614,-151.983367,0.00016438,2]
[396561428,1765051839623,-7146.321565,0.00016438,2]
[396561429,1765051839632,-207.182144,0.00016438,2]
[396561430,1765051839642,-5946.482687,0.00016438,2]
[396561431,1765051839651,-635.717544,0.00016438,2]
[396561432,1765051839660,-2288.15,0.00016438,2]
[396561433,1765051839670,-500.0,0.00016438,2]
[396561434,1765051839679,-500.0,0.00016438,2]
[396561435,1765051839688,-500.0,0.00016438,2]
[396561436,1765051839696,-500.71579645,0.00016438,2]
[396561437,1765051839706,-1889.185256,0.00016438,2]
[396561438,1765051839715,-151.547442,0.00016438,2]
[396561439,1765051839724,-3027.618361,0.00016438,2]
[396561440,1765051839734,-501.86015835,0.00016438,2]
[396561441,1765051839744,-500.63692728,0.00016438,2]
[396561442,1765051839754,-501.84210844,0.00016438,2]
[396561443,1765051839764,-500.0,0.00016438,2]
[396561444,1765051839773,-500.61317202,0.00016438,2]
[396561445,1765051839782,-500.0,0.00016438,2]
[396561446,1765051839791,-500.0,0.00016438,2]
[396561447,1765051839800,-500.0,0.00016438,2]
[396561448,1765051839810,-500.0,0.00016438,2]
[396561449,1765051839819,-500.0,0.00016438,2]
[396561450,1765051839828,-500.0,0.00016438,2]
[396561451,1765051839838,-300.29885268,0.00016438,2]
[396561452,1765051839847,-500.0,0.00016438,2]
[396561453,1765051839856,-501.89648722,0.00016438,2]
[396561454,1765051839866,-500.0,0.00016438,2]
[396561455,1765051839875,-1184.95,0.00016438,2]
[396561456,1765051839884,-502.89890669,0.00016438,2]
[396561457,1765051839894,-503.48297704,0.00016438,2]
[396561458,1765051839903,-503.75717373,0.00016438,2]
[396561459,1765051839912,-500.0,0.00016438,2]
[396561460,1765051839922,-500.0,0.00016438,2]
[396561461,1765051839931,-492.9402367,0.00016438,2]
[396561462,1765051839941,-521.90828836,0.00016438,2]
[396561463,1765051839950,-503.23990933,0.00016438,2]
[396561464,1765051839960,-500.23624001,0.00016438,2]
[396561465,1765051839969,-500.0,0.00016438,2]
[396561466,1765051839979,-503.11146589,0.00016438,2]
[396561467,1765051839988,-2185.56,0.00016438,2]
[396561468,1765051839997,-500.0,0.00016438,2]
[396561469,1765051840006,-500.0,0.00016438,2]
[396561470,1765051840015,-500.0,0.00016438,2]
[396561471,1765051840024,-505.55571931,0.00016438,2]
[396561472,1765051840034,-500.0,0.00016438,2]
[396561473,1765051840043,-500.0,0.00016438,2]
[396561474,1765051840052,-507.56059366,0.00016438,2]
[396561475,1765051840062,-500.0,0.00016438,2]
[396561476,1765051840071,-500.0,0.00016438,2]
[396561477,1765051840080,-500.0,0.00016438,2]
[396561478,1765051840090,-503.02338719,0.00016438,2]
[396561479,1765051840099,-500.0,0.00016438,2]
[396561480,1765051840108,-500.0,0.00016438,2]
[396561481,1765051840117,-2089.74,0.00016438,2]
[396561482,1765051840126,-268.20798391,0.00016438,2]
[396561483,1765051840137,-500.0,0.00016438,2]
[396561484,1765051840147,-500.0,0.00016438,2]
[396561485,1765051840157,-500.0,0.00016438,2]
[396561486,1765051840168,-502.37686608,0.00016438,2]
[396561487,1765051840178,-505.34542907,0.00016438,2]
[396561488,1765051840189,-500.0,0.00016438,2]
[396561489,1765051840199,-500.0,0.00016438,2]
[396561490,1765051840209,-500.0,0.00016438,2]
[396561491,1765051840218,-500.0,0.00016438,2]
[396561492,1765051840229,-500.0,0.00016438,2]
[396561493,1765051840238,-836.69,0.00016438,2]
[396561494,1765051840249,-500.0,0.00016438,2]
[396561496,1765051840258,-500.0,0.00016438,2]
[396561498,1765051840267,-500.0,0.00016438,2]
[396561500,1765051840277,-500.0,0.00016438,2]
[396561502,1765051840287,-500.0,0.00016438,2]
[396561504,1765051840296,-500.0,0.00016438,2]
[396561506,1765051840305,-500.0,0.00016438,2]
[396561508,1765051840314,-500.0,0.00016438,2]
[396561510,1765051840324,-500.0,0.00016438,2]
[396561512,1765051840333,-151.0,0.00016438,2]
[396561514,1765051840342,-151.0,0.00016438,2]
[396561516,1765051840351,-500.0,0.00016438,2]
[396561518,1765051840360,-500.0,0.00016438,2]
[396561520,1765051840369,-502.49133495,0.00016438,2]
[396561521,1765051840379,-152.561314,0.00016438,2]
[396561523,1765051840388,-500.0,0.00016438,2]
[396561525,1765051840397,-500.0,0.00016438,2]
[396561527,1765051840406,-500.0,0.00016438,2]
[396561529,1765051840415,-500.0,0.00016438,2]
[396561531,1765051840425,-190.134864,0.00016438,2]
[396561533,1765051840434,-499.31705567,0.00016438,2]
[396561535,1765051840443,-500.0,0.00016438,2]
[396561537,1765051840452,-157.138741,0.00016438,2]
[396561538,1765051840462,-151.0,0.00016438,2]
[396561539,1765051840471,-300.0,0.00016438,2]
[396561540,1765051840480,-500.0,0.00016438,2]
[396561541,1765051840490,-151.0,0.00016438,2]
[396561542,1765051840499,-627.37,0.00016438,2]
[396561543,1765051840508,-500.0,0.00016438,2]
[396561544,1765051840517,-500.0,0.00016438,2]
[396561545,1765051840526,-500.0,0.00016438,2]
[396561546,1765051840535,-500.0,0.00016438,2]
[396561547,1765051840544,-151.0,0.00016438,2]
[396561548,1765051840553,-500.0,0.00016438,2]
[396561549,1765051840563,-500.0,0.00016438,2]
[396561550,1765051840571,-500.0,0.00016438,2]
[396561551,1765051840584,-151.0,0.00016438,2]
[396561552,1765051840593,-500.0,0.00016438,2]
[396561553,1765051840602,-151.0,0.00016438,2]
[396561554,1765051840612,-151.0,0.00016438,2]
[396561555,1765051840623,-151.0,0.00016438,2]
[396561556,1765051840632,-548.32,0.00016438,2]
[396561557,1765051840641,-500.0,0.00016438,2]
[396561558,1765051840650,-1780.98,0.00016438,2]
[396561559,1765051840660,-500.0,0.00016438,2]
[396561560,1765051840670,-500.0,0.00016438,2]
[396561561,1765051840680,-502.9556045,0.00016438,2]
[396561562,1765051840689,-500.0,0.00016438,2]
[396561563,1765051840698,-500.0,0.00016438,2]
[396561564,1765051840707,-541.36,0.00016438,2]
[396561565,1765051840717,-500.0,0.00016438,2]
[396561566,1765051840726,-500.0,0.00016438,2]
[396561567,1765051840735,-500.0,0.00016438,2]
[396561568,1765051840750,-500.0,0.00016438,2]
[396561569,1765051840760,-152.313717,0.00016438,2]
[396561570,1765051840769,-500.0,0.00016438,2]
[396561571,1765051840778,-486.14398095,0.00016438,2]
[396561572,1765051840788,-500.0,0.00016438,2]
[396561573,1765051840797,-500.0,0.00016438,2]
[396561574,1765051840806,-638.63095907,0.00016438,2]
[396561575,1765051840816,-501.73752653,0.00016438,2]
[396561576,1765051840825,-534.27720199,0.00016438,2]
[396561577,1765051840834,-500.0,0.00016438,2]
[396561578,1765051840844,-500.0,0.00016438,2]
[396561579,1765051840853,-151.0,0.00016438,2]
[396561580,1765051840862,-500.0,0.00016438,2]
[396561581,1765051840871,-433.64249485,0.00016438,2]
[396561582,1765051840880,-501.36752178,0.00016438,2]
[396561583,1765051840890,-500.0,0.00016438,2]
[396561584,1765051840899,-589.10380445,0.00016438,2]
[396561585,1765051840908,-500.0,0.00016438,2]
[396561586,1765051840917,-501.24416574,0.00016438,2]
[396561587,1765051840927,-500.0,0.00016438,2]
[396561588,1765051840936,-523.68637692,0.00016438,2]
[396561589,1765051840945,-500.0,0.00016438,2]
[396561590,1765051840954,-500.0,0.00016438,2]
[396561591,1765051840963,-500.0,0.00016438,2]
[396561592,1765051840973,-501.78890317,0.00016438,2]
[396561593,1765051840982,-295.38070416,0.00016438,2]
[396561594,1765051840991,-500.0,0.00016438,2]
[396561595,1765051841000,-500.0,0.00016438,2]
[396561596,1765051841010,-500.0,0.00016438,2]
[396561597,1765051841018,-500.0,0.00016438,2]
[396561598,1765051841028,-500.0,0.00016438,2]
[396561599,1765051841037,-500.0,0.00016438,2]
[396561600,1765051841046,-500.0,0.00016438,2]
[396561601,1765051841055,-501.42219347,0.00016438,2]
[396561602,1765051841064,-500.0,0.00016438,2]
[396561603,1765051841073,-500.0,0.00016438,2]
[396561604,1765051841082,-630.41013807,0.00016438,2]
[396561605,1765051841092,-500.0,0.00016438,2]
[396561606,1765051841102,-500.0,0.00016438,2]
[396561607,1765051841111,-533.7,0.00016438,2]
[396561608,1765051841122,-500.0,0.00016438,2]
[396561609,1765051841131,-500.0,0.00016438,2]
[396561610,1765051841141,-500.0,0.00016438,2]
[396561611,1765051841150,-531.44,0.00016438,2]
[396561612,1765051841159,-151.0,0.00016438,2]
[396561613,1765051841168,-500.0,0.00016438,2]
[396561614,1765051841177,-502.1415924,0.00016438,2]
[396561615,1765051841186,-504.55558342,0.00016438,2]
[396561616,1765051841196,-500.0,0.00016438,2]
[396561617,1765051841205,-536.63128475,0.00016438,2]
[396561618,1765051841215,-502.63380749,0.00016438,2]
[396561619,1765051841224,-500.0,0.00016438,2]
[396561620,1765051841233,-500.0,0.00016438,2]
[396561621,1765051841241,-500.0,0.00016438,2]
[396561622,1765051841251,-506.93067767,0.00016438,2]
[396561623,1765051841260,-500.0,0.00016438,2]
[396561624,1765051841269,-500.0,0.00016438,2]
[396561625,1765051841279,-500.0,0.00016438,2]
[396561626,1765051841288,-500.0,0.00016438,2]
[396561627,1765051841297,-500.0,0.00016438,2]
[396561628,1765051841306,-500.0,0.00016438,2]
[396561629,1765051841316,-500.0,0.00016438,2]
[396561630,1765051841325,-817.07,0.00016438,2]
[396561631,1765051841335,-500.0,0.00016438,2]
[396561632,1765051841344,-1839.97,0.00016438,2]
[396561633,1765051841355,-500.0,0.00016438,2]
[396561634,1765051841365,-500.0,0.00016438,2]
[396561635,1765051841375,-500.0,0.00016438,2]
[396561636,1765051841384,-500.0,0.00016438,2]
[396561637,1765051841393,-500.0,0.00016438,2]
[396561638,1765051841403,-1861.09,0.00016438,2]
[396561639,1765051841413,-501.54488646,0.00016438,2]
[396561640,1765051841423,-500.0,0.00016438,2]
[396561641,1765051841442,-500.0,0.00016438,2]
[396561642,1765051841454,-500.0,0.00016438,2]
[396561643,1765051841464,-500.0,0.00016438,2]
[396561644,1765051841474,-151.0,0.00016438,2]
[396561645,1765051841483,-500.0,0.00016438,2]
[396561646,1765051841492,-500.0,0.00016438,2]
[396561647,1765051841502,-500.0,0.00016438,2]
[396561648,1765051841512,-500.0,0.00016438,2]
[396561649,1765051841522,-1611.48,0.00016438,2]
[396561650,1765051841531,-500.0,0.00016438,2]
[396561651,1765051841540,-534.11658321,0.00016438,2]
[396561652,1765051841550,-500.0,0.00016438,2]
[396561653,1765051841559,-2036.05,0.00016438,2]
[396561654,1765051841568,-500.0,0.00016438,2]
[396561655,1765051841577,-2345.99,0.00016438,2]
[396561656,1765051841587,-541.66132068,0.00016438,2]
[396561657,1765051841597,-500.0,0.00016438,2]
[396561658,1765051841607,-500.0,0.00016438,2]
[396561659,1765051841616,-500.0,0.00016438,2]
[396561660,1765051841626,-500.0,0.00016438,2]
[396561661,1765051841636,-500.0,0.00016438,2]
[396561662,1765051841646,-500.0,0.00016438,2]
[396561663,1765051841656,-500.0,0.00016438,2]
[396561665,1765051841666,-500.0,0.00016438,2]
[396561666,1765051841676,-500.0,0.00016438,2]
[396561668,1765051841686,-500.0,0.00016438,2]
[396561670,1765051841695,-500.0,0.00016438,2]
[396561672,1765051841705,-500.0,0.00016438,2]
[396561674,1765051841715,-500.0,0.00016438,2]
[396561676,1765051841724,-500.0,0.00016438,2]
[396561677,1765051841734,-1813.37,0.00016438,2]
[396561680,1765051841744,-500.0,0.00016438,2]
[396561682,1765051841754,-500.0,0.00016438,2]
[396561683,1765051841764,-500.0,0.00016438,2]
[396561686,1765051841774,-500.0,0.00016438,2]
[396561687,1765051841782,-500.0,0.00016438,2]
[396561689,1765051841792,-500.0,0.00016438,2]
[396561692,1765051841807,-151.0,0.00016438,2]
[396561694,1765051841817,-500.0,0.00016438,2]
[396561696,1765051841828,-502.87984273,0.00016438,2]
[396561698,1765051841837,-500.0,0.00016438,2]
[396561700,1765051841847,-507.63914207,0.00016438,2]
[396561702,1765051841856,-500.0,0.00016438,2]
[396561704,1765051841866,-151.0,0.00016438,2]
[396561706,1765051841875,-500.0,0.00016438,2]
[396561708,1765051841884,-500.0,0.00016438,2]
[396561710,1765051841895,-152.561314,0.00016438,2]
[396561712,1765051841904,-503.00837935,0.00016438,2]
[396561714,1765051841914,-151.0,0.00016438,2]
[396561715,1765051841923,-500.0,0.00016438,2]
[396561716,1765051841932,-500.0,0.00016438,2]
[396561717,1765051841942,-500.0,0.00016438,2]
[396561718,1765051841951,-1799.49,0.00016438,2]
[396561719,1765051841961,-500.0,0.00016438,2]
[396561720,1765051841970,-500.0,0.00016438,2]
[396561721,1765051841980,-151.0,0.00016438,2]
[396561722,1765051841989,-500.0,0.00016438,2]
[396561723,1765051841999,-500.0,0.00016438,2]
[396561724,1765051842008,-244.73171036,0.00016438,2]
[396561725,1765051842018,-500.0,0.00016438,2]
[396561726,1765051842027,-631.02420226,0.00016438,2]
[396561727,1765051842036,-500.0,0.00016438,2]
[396561728,1765051842047,-500.0,0.00016438,2]
[396561729,1765051842057,-1606.83,0.00016438,2]
[396561730,1765051842066,-500.0,0.00016438,2]
[396561731,1765051842075,-501.97212613,0.00016438,2]
[396561732,1765051842085,-500.0,0.00016438,2]
[396561733,1765051842094,-500.0,0.00016438,2]
[396561734,1765051842103,-501.69452255,0.00016438,2]
[396561735,1765051842113,-1381.45,0.00016438,2]
[396561736,1765051842122,-503.20325223,0.00016438,2]
[396561737,1765051842132,-500.0,0.00016438,2]
[396561738,1765051842141,-568.19,0.00016438,2]
[396561739,1765051842151,-500.0,0.00016438,2]
[396561740,1765051842164,-500.0,0.00016438,2]
[396561741,1765051842174,-151.0,0.00016438,2]
[396561742,1765051842183,-500.0,0.00016438,2]
[396561743,1765051842193,-500.0,0.00016438,2]
[396561744,1765051842203,-502.28475495,0.00016438,2]
[396561745,1765051842213,-500.0,0.00016438,2]
[396561746,1765051842223,-500.0,0.00016438,2]
[396561747,1765051842233,-500.0,0.00016438,2]
[396561748,1765051842244,-502.60918029,0.00016438,2]
[396561749,1765051842255,-500.0,0.00016438,2]
[396561750,1765051842266,-500.0,0.00016438,2]
[396561751,1765051842276,-500.0,0.00016438,2]
[396561752,1765051842287,-500.0,0.00016438,2]
[396561753,1765051842297,-151.0,0.00016438,2]
[396561754,1765051842307,-500.0,0.00016438,2]
[396561755,1765051842317,-502.01367921,0.00016438,2]
[396561756,1765051842327,-500.0,0.00016438,2]
[396561757,1765051842338,-151.0,0.00016438,2]
[396561758,1765051842348,-481.50056983,0.00016438,2]
[396561759,1765051842362,-151.0,0.00016438,2]
[396561760,1765051842372,-500.0,0.00016438,2]
[396561761,1765051842383,-500.0,0.00016438,2]
[396561762,1765051842731,-422.62851451,0.00016438,2]
[396561763,1765051842741,-244.835881,0.00016438,2]
[396561764,1765051842752,-500.0,0.00016438,2]
[396561765,1765051842762,-500.0,0.00016438,2]
[396561766,1765051842772,-501.06889801,0.00016438,2]
[396561767,1765051842782,-500.0,0.00016438,2]
[396561768,1765051842791,-502.23350527,0.00016438,2]
[396561769,1765051842801,-500.0,0.00016438,2]
[396561770,1765051842811,-500.0,0.00016438,2]
[396561771,1765051842820,-503.44743897,0.00016438,2]
[396561772,1765051842830,-500.0,0.00016438,2]
[396561773,1765051842839,-500.0,0.00016438,2]
[396561774,1765051842851,-500.0,0.00016438,2]
[396561775,1765051842861,-626.13516018,0.00016438,2]
[396561776,1765051842871,-500.0,0.00016438,2]
[396561777,1765051842880,-502.15633118,0.00016438,2]
[396561778,1765051842890,-500.0,0.00016438,2]
[396561779,1765051842899,-500.0,0.00016438,2]
[396561780,1765051842909,-498.0211094,0.00016438,2]
[396561781,1765051842918,-500.0,0.00016438,2]
[396561782,1765051842927,-2180.27,0.00016438,2]
[396561783,1765051842937,-500.0,0.00016438,2]
[396561784,1765051842947,-500.0,0.00016438,2]
[396561785,1765051842956,-500.0,0.00016438,2]
[396561786,1765051842966,-500.0,0.00016438,2]
[396561787,1765051842975,-500.0,0.00016438,2]
[396561788,1765051842985,-500.0,0.00016438,2]
[396561789,1765051842994,-500.0,0.00016438,2]
[396561790,1765051843005,-500.0,0.00016438,2]
[396561791,1765051843014,-500.0,0.00016438,2]
[396561792,1765051843024,-500.0,0.00016438,2]
[396561793,1765051843033,-151.0,0.00016438,2]
[396561794,1765051843042,-500.0,0.00016438,2]
[396561795,1765051843052,-500.0,0.00016438,2]
[396561796,1765051843061,-500.0,0.00016438,2]
[396561797,1765051843071,-151.0,0.00016438,2]
[396561798,1765051843084,-500.0,0.00016438,2]
[396561799,1765051843095,-500.0,0.00016438,2]
[396561800,1765051843105,-500.0,0.00016438,2]
[396561801,1765051843114,-501.27967238,0.00016438,2]
[396561802,1765051843123,-500.0,0.00016438,2]
[396561803,1765051843133,-2057.07,0.00016438,2]
[396561804,1765051843142,-1746.11,0.00016438,2]
[396561805,1765051843151,-500.0,0.00016438,2]
[396561806,1765051843160,-500.0,0.00016438,2]
[396561807,1765051843169,-500.0,0.00016438,2]
[396561808,1765051843178,-500.0,0.00016438,2]
[396561809,1765051843187,-675.85,0.00016438,2]
[396561810,1765051843197,-500.0,0.00016438,2]
[396561811,1765051843206,-160.08600271,0.00016438,2]
[396561813,1765051843216,-500.0,0.00016438,2]
[396561815,1765051843224,-500.0,0.00016438,2]
[396561816,1765051843242,-500.0,0.00016438,2]
[396561817,1765051843253,-500.0,0.00016438,2]
[396561818,1765051843263,-500.0,0.00016438,2]
[396561819,1765051843273,-500.0,0.00016438,2]